fUSD/lending_fUSD_20250128
["ID","MTS","AMOUNT","RATE_DAILY","PERIOD"]
[350744040,1738098674648,-500.0,0.00019178,2]
[350744041,1738098674660,-500.0,0.00019178,2]
[350744042,1738098674671,-500.0,0.00019178,2]
[350744043,1738098674683,-3712.02,0.00019178,2]
[350744044,1738098674693,-157.73423786,0.00019178,2]
[350744045,1738098674713,-500.0,0.00019178,2]
[350744046,1738098674728,-283.79867452,0.00019178,2]
[350744047,1738098674739,-3712.02,0.00019178,2]
[350744048,1738098674750,-500.0,0.00019178,2]
[350744049,1738098674761,-3712.02,0.00019178,2]
[350744050,1738098674772,-500.0,0.00019178,2]
[350744051,1738098674783,-500.0,0.00019178,2]
[350744052,1738098674794,-3712.02,0.00019178,2]
[350744053,1738098674806,-500.0,0.00019178,2]
[350744054,1738098674816,-500.0,0.00019178,2]
[350744055,1738098674827,-500.0,0.00019178,2]
[350744056,1738098674845,-3712.02,0.00019178,2]
[350744057,1738098674856,-500.0,0.00019178,2]
[350744058,1738098674867,-500.0,0.00019178,2]
[350744059,1738098674879,-500.0,0.00019178,2]
[350744060,1738098674890,-3712.02,0.00019178,2]
[350744061,1738098674901,-500.0,0.00019178,2]
[350744062,1738098674911,-500.0,0.00019178,2]
[350744063,1738098674922,-3712.02,0.00019178,2]
[350744064,1738098674932,-500.0,0.00019178,2]
[350744065,1738098674943,-500.0,0.00019178,2]
[350744066,1738098674955,-500.0,0.00019178,2]
[350744067,1738098674967,-500.0,0.00019178,2]
[350744068,1738098674978,-500.0,0.00019178,2]
[350744069,1738098674989,-3712.02,0.00019178,2]
[350744070,1738098675000,-500.0,0.00019178,2]
[350744071,1738098675011,-500.0,0.00019178,2]
[350744072,1738098675023,-500.0,0.00019178,2]
[350744073,1738098675034,-3712.02,0.00019178,2]
[350744074,1738098675045,-500.0,0.00019178,2]
[350744075,1738098675056,-500.0,0.00019178,2]
[350744076,1738098675068,-500.0,0.00019178,2]
[350744077,1738098675079,-3712.02,0.00019178,2]
[350744078,1738098675092,-500.0,0.00019178,2]
[350744079,1738098675103,-500.0,0.00019178,2]
[350744080,1738098675115,-500.0,0.00019178,2]
[350744081,1738098675125,-3712.02,0.00019178,2]
[350744082,1738098675136,-500.0,0.00019178,2]
[350744083,1738098675147,-500.0,0.00019178,2]
[350744084,1738098675157,-500.0,0.00019178,2]
[350744085,1738098675168,-3712.02,0.00019178,2]
[350744086,1738098675178,-500.0,0.00019178,2]
[350744087,1738098675188,-500.0,0.00019178,2]
[350744088,1738098675199,-500.0,0.00019178,2]
[350744089,1738098675209,-3712.02,0.00019178,2]
[350744090,1738098675219,-500.0,0.00019178,2]
[350744091,1738098675230,-500.0,0.00019178,2]
[350744092,1738098675240,-3712.02,0.00019178,2]
[350744093,1738098675251,-549.22,0.00019178,2]
[350744094,1738098675261,-500.0,0.00019178,2]
[350744095,1738098675272,-500.0,0.00019178,2]
[350744096,1738098675283,-3712.02,0.00019178,2]
[350744097,1738098675293,-409.3,0.00019178,2]
[350744098,1738098675304,-500.0,0.00019178,2]
[350744099,1738098675315,-500.0,0.00019178,2]
[350744100,1738098675325,-3712.02,0.00019178,2]
[350744101,1738098675337,-623.83,0.00019178,2]
[350744102,1738098675347,-500.0,0.00019178,2]
[350744103,1738098675358,-500.0,0.00019178,2]
[350744104,1738098675368,-623.83,0.00019178,2]
[350744105,1738098675379,-3712.02,0.00019178,2]
[350744106,1738098675389,-500.0,0.00019178,2]
[350744107,1738098675399,-500.0,0.00019178,2]
[350744108,1738098675410,-623.83,0.00019178,2]
[350744109,1738098675420,-271.20351232,0.00019178,2]
[350744110,1738098675430,-500.0,0.00019178,2]
[350744111,1738098675441,-500.0,0.00019178,2]
[350744112,1738098675452,-3712.02,0.00019178,2]
[350744113,1738098675462,-623.83,0.00019178,2]
[350744114,1738098675473,-500.0,0.00019178,2]
[350744115,1738098675483,-500.0,0.00019178,2]
[350744116,1738098675493,-3712.02,0.00019178,2]
[350744117,1738098675504,-500.0,0.00019178,2]
[350744118,1738098675514,-3712.02,0.00019178,2]
[350744119,1738098675524,-500.0,0.00019178,2]
[350744120,1738098675535,-623.83,0.00019178,2]
[350744121,1738098675545,-500.0,0.00019178,2]
[350744122,1738098675555,-3712.02,0.00019178,2]
[350744123,1738098675566,-500.0,0.00019178,2]
[350744124,1738098675576,-623.83,0.00019178,2]
[350744125,1738098675590,-500.0,0.00019178,2]
[350744126,1738098675601,-500.0,0.00019178,2]
[350744127,1738098675612,-500.0,0.00019178,2]
[350744128,1738098675622,-3712.02,0.00019178,2]
[350744129,1738098675634,-623.83,0.00019178,2]
[350744130,1738098675645,-500.0,0.00019178,2]
[350744131,1738098675655,-500.0,0.00019178,2]
[350744132,1738098675666,-3712.02,0.00019178,2]
[350744133,1738098675676,-500.0,0.00019178,2]
[350744134,1738098675687,-500.0,0.00019178,2]
[350744135,1738098675697,-623.83,0.00019178,2]
[350744136,1738098675708,-500.0,0.00019178,2]
[350744137,1738098675718,-292.85424234,0.00019178,2]
[350744138,1738098675729,-3712.2426744,0.00019178,2]
[350744139,1738098675739,-500.0,0.00019178,2]
[350744140,1738098675750,-500.0,0.00019178,2]
[350744141,1738098675761,-623.83,0.00019178,2]
[350744142,1738098675772,-500.0,0.00019178,2]
[350744143,1738098675782,-500.0,0.00019178,2]
[350744144,1738098675792,-500.0,0.00019178,2]
[350744145,1738098675802,-623.83,0.00019178,2]
[350744146,1738098675813,-500.0,0.00019178,2]
[350744147,1738098675823,-500.0,0.00019178,2]
[350744148,1738098675836,-500.0,0.00019178,2]
[350744149,1738098675847,-500.0,0.00019178,2]
[350744150,1738098675857,-500.0,0.00019178,2]
[350744151,1738098675868,-623.83,0.00019178,2]
[350744152,1738098675879,-500.0,0.00019178,2]
[350744153,1738098675895,-622.64690794,0.00019178,2]
[350744154,1738098675907,-500.0,0.00019178,2]
[350744155,1738098675917,-500.0,0.00019178,2]
[350744156,1738098675928,-623.83,0.00019178,2]
[350744157,1738098675939,-500.0,0.00019178,2]
[350744158,1738098675950,-500.0,0.00019178,2]
[350744159,1738098675961,-500.0,0.00019178,2]
[350744160,1738098675972,-500.0,0.00019178,2]
[350744161,1738098675982,-623.83,0.00019178,2]
[350744162,1738098675993,-500.0,0.00019178,2]
[350744163,1738098676003,-500.0,0.00019178,2]
[350744164,1738098676015,-500.0,0.00019178,2]
[350744165,1738098676027,-339.63,0.00019178,2]
[350744166,1738098676039,-623.83,0.00019178,2]
[350744167,1738098676050,-500.0,0.00019178,2]
[350744168,1738098676060,-500.0,0.00019178,2]
[350744169,1738098676071,-500.0,0.00019178,2]
[350744170,1738098676081,-500.0,0.00019178,2]
[350744171,1738098676092,-623.83,0.00019178,2]
[350744172,1738098676104,-500.0,0.00019178,2]
[350744173,1738098676114,-500.0,0.00019178,2]
[350744174,1738098676125,-500.0,0.00019178,2]
[350744175,1738098676135,-256.43521772,0.00019178,2]
[350744176,1738098676145,-500.0,0.00019178,2]
[350744177,1738098676156,-623.83,0.00019178,2]
[350744178,1738098676166,-6355.8,0.00019178,2]
[350744179,1738098676177,-500.0,0.00019178,2]
[350744180,1738098676187,-500.0,0.00019178,2]
[350744181,1738098676198,-500.0,0.00019178,2]
[350744182,1738098676208,-623.83,0.00019178,2]
[350744183,1738098676219,-500.0,0.00019178,2]
[350744184,1738098676230,-6355.8,0.00019178,2]
[350744185,1738098676240,-500.0,0.00019178,2]
[350744186,1738098676250,-500.0,0.00019178,2]
[350744187,1738098676261,-623.83,0.00019178,2]
[350744188,1738098676271,-500.0,0.00019178,2]
[350744189,1738098676282,-6355.8,0.00019178,2]
[350744190,1738098676292,-500.0,0.00019178,2]
[350744191,1738098676303,-500.0,0.00019178,2]
[350744192,1738098676315,-510.09406676,0.00019178,2]
[350744193,1738098676325,-623.83,0.00019178,2]
[350744194,1738098676338,-500.0,0.00019178,2]
[350744195,1738098676348,-6355.8,0.00019178,2]
[350744196,1738098676359,-500.0,0.00019178,2]
[350744197,1738098676370,-500.0,0.00019178,2]
[350744198,1738098676381,-623.83,0.00019178,2]
[350744199,1738098676395,-500.0,0.00019178,2]
[350744200,1738098676406,-6355.8,0.00019178,2]
[350744201,1738098676417,-173.5,0.00019178,2]
[350744202,1738098676428,-242.63219863,0.00019178,2]
[350744203,1738098676438,-623.83,0.00019178,2]
[350744204,1738098676449,-6355.8,0.00019178,2]
[350744205,1738098676461,-623.83,0.00019178,2]
[350744206,1738098676471,-6355.8,0.00019178,2]
[350744207,1738098676482,-500.0,0.00019178,2]
[350744208,1738098676494,-6355.8,0.00019178,2]
[350744209,1738098676504,-500.0,0.00019178,2]
[350744210,1738098676515,-623.83,0.00019178,2]
[350744211,1738098676525,-6355.8,0.00019178,2]
[350744212,1738098676536,-623.94,0.00019178,2]
[350744213,1738098676547,-6355.8,0.00019178,2]
[350744214,1738098676558,-500.0,0.00019178,2]
[350744215,1738098676569,-6355.8,0.00019178,2]
[350744216,1738098676582,-500.0,0.00019178,2]
[350744217,1738098676592,-6355.8,0.00019178,2]
[350744218,1738098676603,-500.0,0.00019178,2]
[350744219,1738098676614,-6355.8,0.00019178,2]
[350744220,1738098676624,-500.0,0.00019178,2]
[350744221,1738098676635,-500.0,0.00019178,2]
[350744222,1738098676646,-6355.8,0.00019178,2]
[350744223,1738098676656,-630.95518774,0.00019178,2]
[350744224,1738098676667,-6355.8,0.00019178,2]
[350744225,1738098676677,-6355.8,0.00019178,2]
[350744226,1738098676687,-503.30333337,0.00019178,2]
[350744227,1738098676697,-6355.8,0.00019178,2]
[350744228,1738098676708,-500.0,0.00019178,2]
[350744229,1738098676719,-6355.8,0.00019178,2]
[350744230,1738098676730,-500.0,0.00019178,2]
[350744231,1738098676740,-6355.8,0.00019178,2]
[350744232,1738098676751,-6355.8,0.00019178,2]
[350744233,1738098676761,-500.0,0.00019178,2]
[350744234,1738098676772,-6355.8,0.00019178,2]
[350744235,1738098676783,-6355.8,0.00019178,2]
[350744236,1738098676794,-6355.8,0.00019178,2]
[350744237,1738098676804,-6355.87472134,0.00019178,2]
[350744238,1738098676815,-500.0,0.00019178,2]
[350744239,1738098676825,-500.0,0.00019178,2]
[350744240,1738098676838,-500.0,0.00019178,2]
[350744241,1738098676848,-500.0,0.00019178,2]
[350744242,1738098676859,-500.0,0.00019178,2]
[350744243,1738098676869,-500.0,0.00019178,2]
[350744244,1738098676879,-500.0,0.00019178,2]
[350744245,1738098676890,-500.0,0.00019178,2]
[350744246,1738098676900,-500.0,0.00019178,2]
[350744247,1738098676915,-500.0,0.00019178,2]
[350744248,1738098676925,-500.0,0.00019178,2]
[350744249,1738098676935,-500.0,0.00019178,2]
[350744250,1738098676947,-10268.7,0.00019178,2]
[350744251,1738098676957,-162.96,0.00019178,2]
[350744252,1738098676968,-10268.7,0.00019178,2]
[350744253,1738098676978,-337.79301353,0.00019178,2]
[350744254,1738098676988,-500.0,0.00019178,2]
[350744255,1738098676999,-10268.7,0.00019178,2]
[350744256,1738098677010,-500.0,0.00019178,2]
[350744257,1738098677023,-10268.7,0.00019178,2]
[350744258,1738098677035,-500.0,0.00019178,2]
[350744259,1738098677045,-500.0,0.00019178,2]
[350744260,1738098677056,-500.0,0.00019178,2]
[350744261,1738098677068,-10268.7,0.00019178,2]
[350744262,1738098677078,-500.0,0.00019178,2]
[350744263,1738098677091,-500.0,0.00019178,2]
[350744264,1738098677103,-500.0,0.00019178,2]
[350744265,1738098677114,-10268.7,0.00019178,2]
[350744266,1738098677125,-274.8712975,0.00019178,2]
[350744267,1738098677326,-500.0,0.00019178,2]
[350744268,1738098677361,-500.0,0.00019178,2]
[350744269,1738098677371,-10268.7,0.00019178,2]
[350744270,1738098677380,-500.0,0.00019178,2]
[350744271,1738098677391,-500.0,0.00019178,2]
[350744272,1738098677401,-10268.7,0.00019178,2]
[350744273,1738098677411,-500.0,0.00019178,2]
[350744274,1738098677421,-500.0,0.00019178,2]
[350744275,1738098677432,-500.0,0.00019178,2]
[350744276,1738098677442,-10268.7,0.00019178,2]
[350744277,1738098677451,-500.0,0.00019178,2]
[350744278,1738098677461,-500.0,0.00019178,2]
[350744279,1738098677470,-10268.7,0.00019178,2]
[350744280,1738098677480,-500.0,0.00019178,2]
[350744281,1738098677490,-500.0,0.00019178,2]
[350744282,1738098677499,-500.0,0.00019178,2]
[350744283,1738098677509,-6362.54154543,0.00019178,2]
[350744284,1738098678682,-1551.5,0.00019178,2]
[350744285,1738098678694,-2354.65845457,0.00019178,2]
[350744286,1738098678705,-500.0,0.00019178,2]
[350744287,1738098678715,-500.0,0.00019178,2]
[350744288,1738098678725,-500.0,0.00019178,2]
[350744289,1738098678736,-1383.0911357,0.00019178,2]
[350744290,1738098678750,-3279.2,0.00019178,2]
[350744291,1738098678762,-5606.4088643,0.00019178,2]
[350744292,1738098678772,-500.0,0.00019178,2]
[350744293,1738098678783,-500.0,0.00019178,2]
[350744294,1738098678794,-285.63677363,0.00019178,2]
[350744295,1738098678870,-214.36322637,0.00019178,2]
[350744296,1738098678881,-500.0,0.00019178,2]
[350744297,1738098678892,-500.0,0.00019178,2]
[350744298,1738098678903,-3522.11721481,0.00019178,2]
[350744299,1738098678942,-687.94347,0.00019178,2]
[350744300,1738098678953,-2697.17970122,0.00019178,2]
[350744301,1738098679088,-1480.0,0.000133,5]
[350744302,1738098679098,-1642.87588608,0.00019178,2]
[350744303,1738098679122,-334.0,0.00019178,2]
[350744304,1738098679134,-1384.58372789,0.00019178,2]
[350744305,1738098679144,-500.0,0.00019178,2]
[350744306,1738098679154,-185.41627211,0.00019178,2]
[350744307,1738098679166,-314.58372789,0.00019178,2]
[350744308,1738098679176,-1433.21627211,0.00019178,2]
[350744309,1738098679188,-3783.31642,0.00019178,2]
[350744310,1738098679204,-5052.16730789,0.00019178,2]
[350744311,1738098679214,-500.0,0.00019178,2]
[350744312,1738098679223,-500.0,0.00019178,2]
[350744313,1738098679233,-500.0,0.00019178,2]
[350744314,1738098679243,-500.0,0.00019178,2]
[350744315,1738098679253,-10268.7,0.00019178,2]
[350744316,1738098679263,-500.0,0.00019178,2]
[350744317,1738098679273,-500.0,0.00019178,2]
[350744318,1738098679283,-500.0,0.00019178,2]
[350744319,1738098679293,-500.0,0.00019178,2]
[350744320,1738098679302,-2619.68679081,0.00019178,2]
[350744321,1738098679316,-1797.14480292,0.00019178,2]
[350744322,1738098679327,-4144.86206469,0.00019178,2]
[350744323,1738098679341,-1707.00634158,0.00019178,2]
[350744324,1738098679350,-500.0,0.00019178,2]
[350744325,1738098679359,-84.84465842,0.00019178,2]
[350744326,1738098679371,-114.73738741,0.00019178,2]
[350744327,1738098679382,-646.5199959,0.00019178,2]
[350744328,1738098679394,-9622.1800041,0.00019178,2]
[350744329,1738098679404,-500.0,0.00019178,2]
[350744330,1738098679414,-500.0,0.00019178,2]
[350744331,1738098679423,-3605.3914569,0.00019178,2]
[350744332,1738098679440,-1581.57987107,0.00019178,2]
[350744333,1738098679452,-1724.16867203,0.00019178,2]
[350744334,1738098679462,-500.0,0.00019178,2]
[350744335,1738098679472,-10268.7,0.00019178,2]
[350744336,1738098679483,-500.0,0.00019178,2]
[350744337,1738098679493,-6911.14,0.00019178,2]
[350744338,1738098679503,-500.0,0.00019178,2]
[350744339,1738098679514,-1543.85072397,0.00019178,2]
[350744340,1738098679555,-416.8065381,0.00019178,2]
[350744341,1738098679567,-1325.2359382,0.00019178,2]
[350744342,1738098679580,-503.47353271,0.00019178,2]
[350744343,1738098679592,-1056.34317,0.00019178,2]
[350744344,1738098679614,-306.59,0.00019178,2]
[350744345,1738098679625,-282.829833,0.00019178,2]
[350744346,1738098679637,-256.09224003,0.00019178,2]
[350744347,1738098679648,-1394.25,0.00019178,2]
[350744348,1738098679662,-410.17306398,0.00019178,2]
[350744349,1738098786882,162.74,0.00010137,2]
[350744351,1738099508336,666108.73467181,0.00012,2]
[350744354,1738099591761,10259.41154216,0.00011,2]
[350744357,1738099657261,4508.1436484,0.00011997,2]
[350744358,1738099680341,176.74,0.0001698,30]
[350744359,1738099681374,671832.92755553,0.0001,2]
[350744362,1738099771103,-389.61999998,0.00013001,7]
[350744363,1738099771126,-23.69868417,0.00014301,2]
[350744370,1738099832092,-126.30131583,0.00014301,2]
[350744371,1738099832103,-150.0,0.00014301,2]
[350744372,1738099832113,-150.0,0.00014644,2]
[350744373,1738099832123,-316.72,0.00015701,2]
[350744374,1738099832133,-150.0,0.00015731,2]
[350744375,1738099832143,-500.0,0.00016288,2]
[350744376,1738099832153,-187.4920227,0.00016535,2]
[350744377,1738099832168,-500.0,0.00016609,2]
[350744378,1738099832178,-150.0,0.00016635,2]
[350744379,1738099832188,-1058.0,0.00016637,2]
[350744380,1738099832198,-150.0,0.00016658,2]
[350744381,1738099832208,-216.84,0.00016658,2]
[350744382,1738099832217,-1000.0,0.00016722,2]
[350744383,1738099832227,-1697.91,0.00016757,2]
[350744384,1738099832237,-266.15,0.0001676,2]
[350744385,1738099832247,-1613.0,0.000168,2]
[350744386,1738099832258,-1023.08,0.00016808,2]
[350744387,1738099832268,-12169.09,0.00016818,2]
[350744388,1738099832279,-450.0,0.0001707,2]
[350744389,1738099832290,-2871.72295314,0.00017071,2]
[350744390,1738099832504,-379.50478889,0.00017071,2]
[350744396,1738099832551,-1000.09,0.00017071,2]
[350744398,1738099832563,-4380.46723962,0.00017071,2]
[350744400,1738099832575,-2609.49592439,0.00017071,2]
[350744402,1738099832586,-5300.0,0.00017071,2]
[350744404,1738099832598,-2073.0,0.00017071,2]
[350744407,1738099832611,-26933.71909396,0.00017071,2]
[350744409,1738099832621,-250.0,0.00017178,2]
[350744411,1738099832630,-505.0,0.00017342,2]
[350744413,1738099832640,-250.0,0.00017364,2]
[350744415,1738099832649,-169.43,0.00017376,2]
[350744417,1738099832662,-700.0,0.00017384,2]
[350744419,1738099832672,-258.03,0.00017432,2]
[350744421,1738099832681,-1058.0,0.00017469,2]
[350744423,1738099832691,-266.15,0.00017598,2]
[350744425,1738099832701,-600.6574693,0.00017668,2]
[350744427,1738099832710,-865.7,0.00017769,2]
[350744429,1738099832720,-173.37,0.00017789,2]
[350744431,1738099832729,-231.31,0.00017836,2]
[350744433,1738099832739,-158.21,0.00017836,2]
[350744435,1738099832748,-651.044,0.00017836,2]
[350744437,1738099832757,-2772.852,0.000179,2]
[350744439,1738099832767,-316.72,0.00017965,2]
[350744441,1738099832776,-157.66,0.00018082,2]
[350744443,1738099832786,-821.96737157,0.00018428,2]
[350744445,1738099832796,-266.15,0.00018436,2]
[350744447,1738099832806,-500.0,0.00018473,2]
[350744449,1738099832815,-700.0,0.0001848,2]
[350744451,1738099832825,-180388.64382886,0.000185,15]
[350744454,1738099832841,-307988.65512374,0.000185,15]
[350744456,1738099832857,-2100.2217,0.000185,15]
[350744619,1738099837982,-130041.9909751,0.000185,15]
[350744620,1738099837995,-10046.02626663,0.000185,15]
[350744621,1738099838042,-15464.5,0.000185,15]
[350744622,1738099838104,-271.0,0.000185,15]
[350744623,1738099838117,-3070.51767798,0.000185,15]
[350744624,1738099838130,-1000.53169999,0.000185,15]
[350744625,1738099838142,-1050.0,0.000185,15]
[350744660,1738099840077,-679.8512836,0.000185,15]
[350744661,1738099840151,-534.6034657,0.000185,15]
[350744662,1738099840163,-509.486501,0.000185,15]
[350744663,1738099840175,-19545.07509761,0.000185,15]
[350744664,1738099840187,-4014.5,0.000185,15]
[350744665,1738099840200,-1055.64999968,0.000185,15]
[350744666,1738099840339,-898.8725346,0.000185,15]
[350744667,1738099840352,-2143.81155967,0.000185,15]
[350744668,1738099840364,-1014.1792772,0.000185,15]
[350744669,1738099840399,-258.59,0.000185,15]
[350744670,1738099840412,-827.59180666,0.000185,15]
[350744671,1738099840426,-304.166235,0.000185,15]
[350744672,1738099840440,-1000.0,0.000185,15]
[350744673,1738099840457,-909.84506265,0.000185,15]
[350744674,1738099840475,-9119.7,0.000185,15]
[350744882,1738099844204,-993.65312793,0.000185,15]
[350744883,1738099844216,-25859.5064,0.000185,15]
[350744884,1738099844228,-969.38959618,0.000185,15]
[350744936,1738099846278,-10501.1132158,0.000185,15]
[350744937,1738099846291,-5570.45453968,0.000185,15]
[350744938,1738099846453,-5072.5,0.000185,15]
[350744939,1738099846466,-1323.45855065,0.000185,15]
[350745006,1738100102075,-300.0,0.000138,5]
[350745007,1738100102109,-175.0,0.000138,5]
[350745008,1738100102191,-7.0,0.000138,5]
[350745009,1738100102215,-150.0,0.00015194,2]
[350745010,1738100102237,-150.0,0.0001551,2]
[350745011,1738100102259,-150.0,0.0001551,2]
[350745012,1738100102281,-500.0,0.00016288,2]
[350745013,1738100102303,-495.0,0.000165,2]
[350745014,1738100102604,-600.0,0.000165,2]
[350745015,1738100102667,-357.0,0.000165,2]
[350745016,1738100102689,-150.0,0.0001693,2]
[350745017,1738100102711,-600.0,0.00017384,2]
[350745018,1738100102734,-426.27,0.00017824,2]
[350745020,1738100424246,313.53,0.00015739,2]
[350745021,1738100499929,164.77,0.00010137,2]
[350745024,1738100574248,167.9,0.00017781,30]
[350745025,1738100855056,21.7,0.00016288,2]
[350745026,1738100963119,-164.77,0.00016813,2]
[350745036,1738101032251,-500.0,0.00017384,2]
[350745037,1738101032261,-500.0,0.00017384,2]
[350745038,1738101032271,-500.0,0.00017462,2]
[350745039,1738101032280,-1000.0,0.00017473,2]
[350745040,1738101032290,-150.0,0.00017616,2]
[350745041,1738101032299,-3681.30737563,0.00017616,2]
[350745042,1738101032309,-177.43,0.00017631,2]
[350745043,1738101032319,-5581.3,0.00017633,2]
[350745044,1738101032328,-3363.66,0.00017643,2]
[350745045,1738101032338,-646.30262437,0.00017662,2]
[350745046,1738101032350,-922.75737563,0.00017662,2]
[350745047,1738101032359,-283.9,0.00017662,2]
[350745048,1738101032369,-1500.0,0.00017702,2]
[350745049,1738101032379,-306.09,0.00017716,2]
[350745050,1738101032389,-1107.0,0.00017824,2]
[350745051,1738101032399,-313.53,0.00018002,2]
[350745052,1738101032409,-157.66,0.00018082,2]
[350745053,1738101032419,-500.0,0.00018178,7]
[350745054,1738101032428,-600.6574693,0.00018375,2]
[350745055,1738101032438,-375.00944549,0.00018375,2]
[350745056,1738101032450,-67.91635451,0.00018375,2]
[350745057,1738101032459,-150.0,0.00018399,2]
[350745058,1738101032469,-118.16461949,0.000184,2]
[350745059,1738101032482,-1924.15358051,0.000184,2]
[350745060,1738101032491,-4500.71748066,0.000184,2]
[350745061,1738101032510,-14076.72046706,0.000184,2]
[350745062,1738101032522,-701.26254607,0.000184,2]
[350745063,1738101032538,-14954.11313572,0.000184,2]
[350745064,1738101032557,-2499.40353259,0.000184,2]
[350745065,1738101032573,-19945.6030379,0.000184,2]
[350745066,1738101032583,-2317.2642,0.000184,2]
[350745067,1738101032592,-500.0,0.0001848,2]
[350745068,1738101032601,-500.0,0.00018499,2]
[350745069,1738101032611,-520.835,0.00018499,2]
[350745070,1738101032621,-1466.29776209,0.00018499,5]
[350745071,1738101032638,-1777.80580762,0.0001848,2]
[350745072,1738101032650,-1222.19419238,0.0001848,2]
[350745073,1738101032660,-760.8228647,0.00018499,5]
[350745074,1738101032694,-505.0,0.00018499,5]
[350745075,1738101032704,-660.50090501,0.00018499,5]
[350745076,1738101032715,-5043.0,0.00018499,5]
[350745077,1738101032732,-1627.52420779,0.00018499,5]
[350745090,1738101038148,-12088.70039857,0.00018499,5]
[350745091,1738101038211,-482.640001,0.00018499,5]
[350745092,1738101038273,-16256.46553233,0.00018499,5]
[350745093,1738101038283,-4292.01319295,0.00018499,5]
[350745094,1738101038292,-19851.52127472,0.000185,15]
[350745095,1738101038304,-323.15913875,0.000185,15]
[350745096,1738101038315,-14972.74283365,0.000185,15]
[350745259,1738101040294,-15411.11049367,0.000185,15]
[350745261,1738101040307,-6406.3998,0.000185,15]
[350745268,1738101040384,-7125.1206696,0.000185,15]
[350745270,1738101040396,-463.96548177,0.000185,15]
[350745272,1738101040408,-101110.21799998,0.000185,15]
[350745277,1738101040465,-404.404,0.000185,15]
[350745291,1738101040634,-11191.14278195,0.000185,15]
[350745293,1738101040644,-10601.557,0.000185,2]
[350745295,1738101040653,-166.65840854,0.000185,2]
[350745297,1738101040665,-166.6584085,0.000185,2]
[350745298,1738101040675,-739.77063444,0.00018526,2]
[350745300,1738101040685,-3847.9268846,0.00018528,2]
[350745302,1738101040694,-166.6584085,0.00018567,2]
[350745304,1738101040704,-739.77063436,0.00018587,2]
[350745306,1738101040714,-19094.01612612,0.000186,2]
[350745308,1738101040727,-210055.04992171,0.000186,2]
[350745310,1738101040736,-1401.0,0.000186,2]
[350745311,1738101040746,-739.77063436,0.00018649,2]
[350745313,1738101040755,-166.6584085,0.0001865,2]
[350745315,1738101040765,-1000.0,0.000187,2]
[350745317,1738101040774,-739.77063436,0.0001871,2]
[350745318,1738101040784,-166.6584085,0.00018733,2]
[350745320,1738101040794,-216.84,0.00018741,2]
[350745322,1738101040803,-739.77063436,0.00018771,2]
[350745324,1738101040815,-535.6198,0.00018794,2]
[350745325,1738101040825,-166.6584085,0.00018817,2]
[350745327,1738101040835,-739.77063436,0.00018833,2]
[350745329,1738101040844,-428.27165337,0.00018859,2]
[350745331,1738101040854,-181.42,0.0001887,2]
[350745332,1738101040863,-428.27165337,0.00018887,2]
[350745333,1738101040873,-739.77063436,0.00018894,2]
[350745334,1738101040882,-1082.916,0.000189,2]
[350745335,1738101040891,-157.08084598,0.000189,2]
[350745336,1738101040901,-177.06998898,0.000189,2]
[350745337,1738101040911,-1576.0,0.000189,2]
[350745338,1738101040921,-165.19962675,0.000189,2]